bitfinex/quotes_ETHUSD_20250219
["timestamp","ask_amount","ask_price","bid_price","bid_amount"]
[1739969707214,0.8308,2715.0,2714.4,3.68404]
[1739969707831,0.8308,2715.0,2714.4,3.68398]
[1739969708128,0.8308,2715.0,2714.5,3.68383]
[1739969708331,0.8308,2715.0,2714.6,3.68377]
[1739969708830,0.8308,2715.0,2714.5,3.68383]
[1739969709528,0.8308,2715.0,2714.6,3.68377]
[1739969709728,0.8308,2715.0,2714.5,0.47103465]
[1739969709934,0.8308,2715.0,2714.7,3.68357]
[1739969710720,0.8308,2715.0,2714.6,3.68365]
[1739969710920,0.8308,2715.0,2714.7,3.68363]
[1739969711120,0.8308,2715.0,2714.8,3.68341]
[1739969713765,0.8308,2715.0,2714.9,3.68337]
[1739969714064,3.0,2715.4,2714.9,8.10335]
[1739969714065,0.7981,2715.3,2714.9,8.10335]
[1739969714468,0.7981,2715.3,2715.1,3.68303]
[1739969714622,0.7685,2715.7,2715.2,3.68287]
[1739969714825,3.7685,2715.7,2715.2,3.68287]
[1739969715132,3.7685,2715.7,2714.9,5.5548]
[1739969715133,0.7685,2715.9,2715.5,3.68244]
[1739969715320,0.67,2715.6,2715.5,0.76391578]
[1739969715525,0.7685,2716.2,2715.5,0.76391578]
[1739969715753,0.7685,2716.2,2715.8,3.68204]
[1739969715918,3.48736691,2716.4,2715.8,3.68204]
[1739969715919,4.31266691,2716.4,2715.9,3.6819]
[1739969716115,7.99405691,2716.4,2715.8,3.68204]
[1739969716357,9.4615816,2716.4,2715.8,3.68204]
[1739969716521,5.7801916,2716.4,2715.8,3.68204]
[1739969716719,3.68156,2716.3,2715.6,3.68234]
[1739969716939,3.48736691,2716.1,2715.5,4.44645578]
[1739969717136,3.48736691,2716.1,2715.5,0.76391578]
[1739969717652,0.8225,2715.7,2715.3,5.3176]
[1739969718265,0.8225,2715.4,2714.8,3.68347]
[1739969718563,4.50523,2715.4,2714.8,7.36686]
[1739969718727,4.50523,2715.4,2714.8,3.68343]
[1739969719063,0.8225,2715.4,2714.8,7.36684]
[1739969719224,0.8225,2715.4,2714.9,4.447264]
[1739969720124,0.8225,2715.4,2714.9,0.763984]
[1739969720340,4.5052,2715.4,2714.9,0.763984]
[1739969721136,0.8225,2715.4,2714.9,4.447314]
[1739969721336,0.8225,2715.4,2714.9,0.763984]
[1739969722169,0.8225,2715.4,2714.9,4.447354]
[1739969722799,4.50521,2715.4,2714.9,0.763984]
[1739969723666,0.8225,2715.4,2714.9,0.763984]
[1739969723872,0.8225,2715.4,2715.0,4.1279694]
[1739969724593,0.8225,2715.4,2715.0,7.8111194]
[1739969724896,0.8225,2715.4,2715.0,4.1278894]
[1739969725200,0.8225,2715.4,2715.2,3.68294]
[1739969726576,0.7821,2715.7,2715.4,3.68257]
[1739969726773,0.7821,2715.7,2715.5,3.68255]
[1739969727295,4.26946691,2716.3,2715.6,3.68232]
[1739969727466,4.26946691,2716.3,2715.8,7.36419]
[1739969727665,4.26946691,2716.3,2715.8,7.36412]
[1739969727864,4.26946691,2716.3,2715.9,3.68197]
[1739969728603,4.26946691,2716.3,2716.0,7.36374]
[1739969728906,4.26946691,2716.3,2716.0,3.68187]
[1739969729109,4.26946691,2716.3,2715.8,7.36415]
[1739969729306,4.26946691,2716.3,2715.9,3.68191]
[1739969729475,4.26946691,2716.3,2715.8,3.68207]
[1739969729682,4.26946691,2716.3,2716.0,3.68179]
[1739969729977,4.30036691,2716.6,2716.0,3.68179]
[1739969730209,4.30036691,2716.6,2716.0,7.36358]
[1739969730523,0.813,2716.6,2716.0,3.68177]
[1739969730810,3.813,2716.6,2715.8,0.391927]
[1739969731017,3.813,2716.6,2716.2,3.68151]
[1739969731310,3.813,2716.6,2715.9,5.3176]
[1739969731311,8.22412669,2716.6,2715.9,5.3176]
[1739969731510,3.48736691,2716.4,2715.9,5.3176]
[1739969732085,3.48736691,2716.1,2715.2,4.64488188]
[1739969732309,0.8148,2716.0,2715.3,3.68273]
[1739969732513,0.8148,2716.0,2715.5,3.68255]
[1739969732805,0.8148,2716.0,2715.5,4.419065]
[1739969733005,0.8148,2716.0,2715.7,3.6822]
[1739969734155,0.7615,2716.2,2715.9,3.68194]
[1739969734867,0.793,2716.4,2716.1,3.68166]
[1739969735229,0.793,2716.4,2715.8,3.68202]
[1739969735428,0.793,2716.4,2715.8,7.36409]
[1739969735618,0.793,2716.4,2715.8,0.760129]
[1739969735818,0.793,2716.4,2715.9,3.68202]
[1739969736033,0.793,2716.4,2716.1,3.68172]
[1739969736429,0.793,2716.4,2715.9,7.36386]
[1739969736753,0.793,2716.4,2716.0,3.68184]
[1739969737429,0.793,2716.4,2715.8,3.68208]
[1739969737631,0.793,2716.4,2715.9,0.760148]
[1739969737829,0.793,2716.4,2715.9,4.442158]
[1739969738125,0.793,2716.4,2716.1,3.68163]
[1739969738341,0.793,2716.4,2716.0,3.68188]
[1739969738546,0.793,2716.4,2716.2,3.6816]
[1739969739869,3.0,2716.6,2716.2,0.41967128]
[1739969740031,3.773,2716.6,2716.2,4.10125128]
[1739969740236,3.48736691,2716.7,2716.2,4.33845128]
[1739969740429,0.773,2716.8,2716.3,3.68139]
[1739969740632,0.773,2716.8,2716.3,4.1261294]
[1739969741030,0.773,2716.8,2716.5,3.68108]
[1739969741275,0.763,2717.1,2716.6,3.68095]
[1739969741618,0.763,2717.1,2716.5,3.68108]
[1739969742171,0.763,2717.1,2716.6,3.68106]
[1739969742418,0.763,2717.1,2716.7,0.368106]
[1739969742616,0.763,2717.1,2716.8,3.68079]
[1739969743176,0.763,2717.1,2716.7,0.368106]
[1739969743417,0.763,2717.1,2716.7,4.049026]
[1739969743729,0.763,2717.1,2716.8,3.6808]
[1739969743930,0.763,2717.1,2716.7,0.368106]
[1739969744529,0.763,2717.1,2716.8,0.392042]
[1739969744724,0.763,2717.1,2716.8,3.6807]
[1739969745034,4.44342,2717.1,2716.4,5.5906]
[1739969745328,4.44342,2717.1,2716.5,3.68109]
[1739969745516,0.763,2717.1,2716.5,3.68107]
[1739969745716,0.763,2717.1,2716.6,1.17981928]
[1739969745914,3.68061,2717.0,2716.4,5.5906]
[1739969746432,0.763,2717.1,2716.4,9.27186]
[1739969746584,4.4434,2717.1,2716.4,9.27186]
[1739969747137,4.4434,2717.1,2716.4,12.95312]
[1739969747305,3.68057,2717.0,2716.4,9.27186]
[1739969747500,0.8165,2716.8,2716.4,8.99887]
[1739969747701,0.8165,2716.8,2716.4,5.3176]
[1739969749363,0.8165,2716.8,2716.4,8.99892]
[1739969751237,0.8165,2716.8,2716.4,3.68132]
[1739969752160,0.8165,2716.8,2716.3,3.68147]
[1739969752741,4.4973,2716.8,2716.3,3.68147]
[1739969754086,0.8165,2716.8,2716.3,3.68147]
[1739969754393,4.49731,2716.8,2716.3,3.68147]
[1739969754886,0.8165,2716.8,2716.3,3.68147]
[1739969755272,4.49731,2716.8,2716.3,3.68147]
[1739969755468,4.43389,2716.5,2715.9,3.91915]
[1739969755672,4.43389,2716.5,2715.9,3.68195]
[1739969755982,3.48736691,2716.3,2715.7,12.91926]
[1739969756215,3.48736691,2716.3,2715.8,3.68215]
[1739969756544,7.16890691,2716.3,2715.7,9.23699]
[1739969756743,3.48736691,2716.3,2715.8,3.68214]
[1739969757482,3.48736691,2716.3,2715.9,3.68195]
[1739969757685,0.7526,2716.5,2715.9,0.03681735]
[1739969757984,0.7526,2716.5,2716.1,3.68167]
[1739969758285,0.7526,2716.5,2716.2,3.68151]
[1739969759093,0.7526,2716.5,2715.9,3.68193]
[1739969759380,4.43387,2716.5,2715.9,3.68193]
[1739969759589,4.43387,2716.5,2716.0,3.68188]
[1739969759792,0.7526,2716.5,2716.0,3.68188]
[1739969760613,0.7526,2716.5,2716.1,3.68166]
[1739969760911,0.7526,2716.5,2716.0,3.68188]
[1739969761124,4.43389,2716.5,2716.0,3.6818]
[1739969761710,0.7526,2716.5,2716.0,3.6818]
[1739969762004,4.43388,2716.5,2716.0,3.6818]
[1739969762214,0.7526,2716.5,2716.0,3.68179]
[1739969762414,0.7526,2716.5,2715.7,5.8268]
[1739969762415,0.7526,2716.5,2716.2,3.68158]
[1739969762618,0.7526,2716.5,2716.2,3.6816]
[1739969762965,0.7526,2716.5,2716.0,4.050039]
[1739969763217,0.7526,2716.5,2716.0,4.049929]
[1739969763807,0.7526,2716.5,2716.1,3.68164]
[1739969764004,0.7526,2716.5,2716.2,3.68157]
[1739969764415,0.7526,2716.5,2716.1,3.68174]
[1739969766223,0.7526,2716.5,2716.0,4.050059]
[1739969766410,4.43382,2716.5,2716.0,4.050059]
[1739969767229,4.43382,2716.5,2715.7,5.8258]
[1739969767230,3.68136,2716.4,2715.7,5.5548]
[1739969767397,3.48736691,2716.2,2715.7,5.3176]
[1739969767616,0.823,2715.4,2715.3,8.279]
[1739969767802,4.31036691,2715.4,2714.9,5.3176]
[1739969768007,4.31036691,2715.4,2715.0,3.68322]
[1739969768222,4.31036691,2715.4,2715.1,1.268418]
[1739969768819,4.31036691,2715.4,2715.0,3.68321]
[1739969769487,4.31036691,2715.4,2714.9,5.3176]
[1739969769720,4.31036691,2715.4,2714.9,9.00093]
[1739969770592,4.31036691,2715.4,2715.0,3.6832]
[1739969772087,4.31036691,2715.4,2714.9,5.3176]
[1739969772292,7.99309691,2715.4,2714.9,5.3176]
[1739969772710,7.99309691,2715.4,2714.9,9.00092]
[1739969773393,7.99309691,2715.4,2714.9,5.3176]
[1739969773633,7.99309691,2715.4,2714.9,9.00094]
[1739969773831,7.99309691,2715.4,2714.9,5.3176]
[1739969774444,0.8193,2715.1,2714.9,5.3176]
[1739969774936,4.50241,2715.1,2714.9,5.3176]
[1739969775093,0.8193,2715.1,2714.9,5.3176]
[1739969775296,4.30666691,2715.1,2714.9,5.3176]
[1739969776239,3.68324,2715.0,2714.9,5.3176]
[1739969776537,4.30666691,2715.1,2714.9,5.3176]
[1739969776835,3.68324,2715.0,2714.1,9.23924]
[1739969777045,4.25846691,2714.8,2714.2,3.68425]
[1739969777208,7.94199691,2714.8,2714.2,3.68425]
[1739969777529,7.94199691,2714.8,2714.1,9.00204]
[1739969777739,7.94199691,2714.8,2714.1,9.00198]
[1739969777946,7.94199691,2714.8,2714.2,3.68431]
[1739969778099,3.68372,2714.7,2714.1,9.00198]
[1739969778296,3.68399,2714.5,2714.1,5.3176]
[1739969778516,7.17135691,2714.5,2714.1,5.3176]
[1739969778692,3.48736691,2714.5,2714.1,5.3176]
[1739969779314,0.7657,2714.6,2714.1,9.00198]
[1739969779656,0.7657,2714.6,2714.2,3.6843]
[1739969780850,0.7657,2714.6,2714.1,3.68445]
[1739969781162,0.7657,2714.6,2713.7,0.72261321]
[1739969781163,4.31236691,2714.2,2713.7,0.72261321]
[1739969781357,4.31236691,2714.2,2713.4,0.1482784]
[1739969781358,3.68508,2713.7,2713.4,0.1482784]
[1739969781654,3.48736691,2713.9,2713.4,0.1482784]
[1739969781655,0.8109,2713.6,2713.4,0.1482784]
[1739969781857,3.68527,2713.5,2713.4,0.1482784]
[1739969782408,4.29826691,2713.6,2713.4,0.1482784]
[1739969782614,4.2857046,2713.6,2713.4,0.1482784]
[1739969782815,4.45337,2713.5,2713.4,0.1482784]
[1739969783641,3.7681,2713.5,2713.4,0.1482784]
[1739969783847,7.45337,2713.5,2713.4,0.1482784]
[1739969785022,8.12337,2713.5,2713.4,0.1482784]
[1739969785956,1.4381,2713.5,2713.4,0.1482784]
[1739969786931,0.7681,2713.5,2713.4,0.1482784]
[1739969787463,5.19436252,2713.5,2713.4,0.1482784]
[1739969787657,8.74436252,2713.5,2713.4,0.1482784]
[1739969788338,0.7506,2712.7,2712.2,5.3176]
[1739969788515,3.48736691,2712.6,2712.1,0.005]
[1739969789224,0.7661,2712.2,2712.1,0.005]
[1739969789448,4.87848669,2712.2,2712.1,0.005]
[1739969789648,4.11238669,2712.2,2712.1,0.005]
[1739969789851,3.7983,2712.1,2711.3,0.005]
[1739969790088,0.7983,2711.4,2711.3,0.005]
[1739969790247,0.7983,2712.1,2711.3,5.3226]
[1739969790447,3.48736691,2712.5,2712.0,3.68731]
[1739969790644,0.825,2712.7,2712.0,3.68731]
[1739969790645,0.825,2712.7,2712.1,3.68716]
[1739969790977,0.825,2712.7,2711.8,5.3176]
[1739969791131,3.48736691,2712.8,2712.2,0.3904]
[1739969791337,3.48736691,2712.8,2712.3,3.68681]
[1739969791537,3.48736691,2712.8,2712.2,0.3904]
[1739969791834,4.2872126,2712.8,2712.2,0.3904]
[1739969792043,4.2872126,2712.8,2712.3,3.6869]
[1739969792239,3.48736691,2712.5,2712.2,4.07743]
[1739969792654,3.48736691,2712.5,2712.2,4.07733]
[1739969792977,3.48736691,2712.5,2712.3,3.68685]
[1739969793165,3.48736691,2712.5,2712.3,3.68681]
[1739969793581,3.48736691,2712.5,2712.1,7.37417]
[1739969793825,3.48736691,2712.5,2712.3,3.6869]
[1739969794285,3.48736691,2712.5,2712.1,3.68707]
[1739969794753,3.48736691,2712.5,2712.3,3.68689]
[1739969795156,3.48736691,2712.5,2712.2,3.68692]
[1739969795368,3.48736691,2712.5,2712.3,3.68681]
[1739969795676,3.48736691,2712.5,2711.9,0.6644]
[1739969795677,3.48736691,2712.5,2712.4,3.68677]
[1739969796355,3.48736691,2712.5,2712.2,3.68704]
[1739969796537,3.48736691,2712.5,2712.3,3.6869]
[1739969797483,3.48736691,2712.5,2712.4,3.68677]
[1739969797842,3.48736691,2712.5,2712.3,7.37372]
[1739969798040,3.48736691,2712.5,2712.3,3.68682]
[1739969798479,3.48736691,2712.5,2712.3,7.37365]
[1739969798670,3.48736691,2712.5,2712.4,3.68677]
[1739969799471,3.48736691,2712.5,2712.3,3.68682]
[1739969799668,3.48736691,2712.5,2712.3,7.37361]
[1739969800282,3.48736691,2712.5,2712.3,3.68679]
[1739969801692,0.8186,2712.4,2711.5,9.00552]
[1739969801898,3.48736691,2711.6,2711.5,9.00552]
[1739969802765,3.48736691,2711.9,2711.8,3.68758]
[1739969803501,3.48736691,2712.1,2711.9,3.68736]
[1739969803660,3.9136636,2712.1,2711.7,3.68765]
[1739969803853,3.48736691,2711.8,2711.7,3.68765]
[1739969804083,3.48736691,2711.8,2711.6,3.68775]
[1739969804254,3.48736691,2711.8,2711.6,3.68785]
[1739969804455,3.48736691,2711.8,2711.4,3.68805]
[1739969804890,3.48736691,2711.8,2711.5,3.68799]
[1739969805353,3.48736691,2711.8,2711.5,3.68795]
[1739969805782,3.48736691,2711.8,2711.6,3.68778]
[1739969805993,3.48736691,2711.8,2711.7,3.68772]
[1739969807369,3.48736691,2711.8,2711.6,3.68778]
[1739969807777,3.48736691,2711.8,2711.6,7.37555]
[1739969808098,3.48736691,2711.8,2711.6,3.68777]
[1739969808571,3.48736691,2711.8,2711.5,3.68797]
[1739969808933,3.48736691,2711.8,2711.7,3.68772]
[1739969812137,3.48736691,2711.8,2711.6,3.68783]
[1739969813639,3.48736691,2711.8,2711.3,0.005]
[1739969813820,3.48736691,2711.8,2711.6,3.68776]
[1739969814218,3.48736691,2711.8,2711.6,7.37553]
[1739969814414,3.48736691,2711.8,2711.6,3.68776]
[1739969814748,3.9136636,2712.1,2711.8,3.68757]
[1739969815447,0.7756,2712.2,2711.8,3.68757]
[1739969815648,0.7756,2712.2,2711.9,3.68735]
[1739969815649,4.26296691,2712.2,2711.9,3.68735]
[1739969815844,4.26296691,2712.2,2711.9,3.68732]
[1739969816004,3.48736691,2712.2,2712.1,3.68717]
[1739969816629,3.48736691,2712.2,2711.9,3.68745]
[1739969816846,3.48736691,2712.2,2712.0,3.68724]
[1739969817030,3.48736691,2712.2,2712.0,7.37442]
[1739969817233,3.48736691,2712.2,2712.1,3.68717]
[1739969818177,3.48736691,2712.2,2712.0,3.68731]
[1739969818373,3.48736691,2712.2,2711.9,3.68741]
[1739969818778,3.48736691,2712.2,2712.0,3.68729]
[1739969819583,3.48736691,2712.2,2712.0,3.68731]
[1739969820140,3.48736691,2712.2,2712.0,3.68723]
[1739969820449,3.48736691,2712.2,2712.1,3.68717]
[1739969820661,4.26356691,2712.5,2712.3,3.68683]
[1739969820952,3.48736691,2712.5,2712.1,3.68706]
[1739969821182,3.9174236,2712.5,2712.1,3.68706]
[1739969821387,3.9174236,2712.5,2712.1,7.37414]
[1739969821585,3.48736691,2712.5,2712.3,3.6869]
[1739969821881,3.48736691,2712.5,2712.1,3.68707]
[1739969822044,3.48736691,2712.5,2711.9,0.3904]
[1739969822242,3.48736691,2712.5,2712.1,3.68711]
[1739969822652,3.48736691,2712.5,2712.2,3.68695]
[1739969822857,3.48736691,2712.5,2712.3,3.68683]
[1739969823058,3.48736691,2712.5,2712.2,3.68695]
[1739969823259,3.48736691,2712.5,2712.3,3.6869]
[1739969824002,3.48736691,2712.5,2712.4,3.68677]
[1739969825610,3.48736691,2712.5,2712.3,3.6869]
[1739969825611,3.48736691,2712.5,2712.3,7.37372]
[1739969825917,3.48736691,2712.5,2712.4,3.68677]
[1739969826212,3.48736691,2712.5,2712.3,3.68682]
[1739969826368,3.48736691,2712.5,2712.4,3.68677]
[1739969827108,3.48736691,2712.5,2712.3,3.68682]
[1739969827428,3.48736691,2712.5,2712.3,3.68685]
[1739969827566,3.48736691,2712.5,2712.4,3.68677]
[1739969828009,3.48736691,2712.5,2712.3,3.68679]
[1739969828372,3.48736691,2712.5,2712.4,3.68677]
[1739969829285,0.8253,2712.9,2712.4,3.68677]
[1739969829492,0.8253,2712.9,2712.6,3.68643]
[1739969829493,3.48736691,2712.8,2712.6,3.68643]
[1739969829687,3.48736691,2712.8,2712.7,3.68636]
[1739969829941,3.48736691,2712.8,2712.6,7.37281]
[1739969830284,3.48736691,2712.8,2712.6,3.68638]
[1739969830930,3.48736691,2712.8,2712.6,3.68645]
[1739969832762,3.48736691,2712.8,2712.7,3.68636]
[1739969832964,3.48736691,2713.1,2712.8,3.68621]
[1739969833257,3.86963691,2713.1,2712.6,3.68636]
[1739969833464,3.86963691,2713.1,2712.8,3.68609]
[1739969833465,3.48736691,2713.1,2712.8,3.68609]
[1739969833630,3.48736691,2713.1,2712.8,7.3722]
[1739969833834,3.48736691,2713.1,2712.8,7.37225]
[1739969834039,3.48736691,2713.1,2712.6,3.6864]
[1739969834575,3.48736691,2713.1,2712.4,4.07715]
[1739969834758,3.48736691,2712.8,2712.6,3.68646]
[1739969835380,3.48736691,2712.8,2712.7,3.68636]
[1739969835577,4.2869296,2713.1,2712.7,3.68636]
[1739969835875,4.2869296,2713.1,2712.6,3.68646]
[1739969836047,4.2869296,2713.1,2712.8,3.68622]
[1739969836380,4.2869296,2713.1,2712.7,3.68635]
[1739969837192,4.2869296,2713.1,2712.6,3.68639]
[1739969837367,0.51096296,2713.0,2712.6,3.68639]
[1739969838077,0.51096296,2713.0,2712.6,3.68643]
[1739969838447,0.51096296,2713.0,2712.5,3.68663]
[1739969838778,0.51096296,2713.0,2712.7,3.68632]
[1739969838982,0.51096296,2713.0,2712.6,3.6865]
[1739969838983,0.51096296,2713.0,2712.6,3.68642]
[1739969839227,0.51096296,2713.0,2712.5,3.68661]
[1739969839508,0.8297,2712.7,2712.2,9.00463]
[1739969839720,3.48736691,2712.5,2712.2,9.00463]
[1739969840013,3.48736691,2712.8,2712.6,3.68648]
[1739969840518,3.48736691,2712.8,2712.5,3.68655]
[1739969840699,3.48736691,2712.8,2712.6,3.68643]
[1739969840868,3.48736691,2712.8,2712.5,3.68655]
[1739969841070,3.9696599,2712.8,2712.3,3.6868]
[1739969841369,3.48736691,2712.4,2711.9,0.3904]
[1739969841573,3.48736691,2712.4,2711.8,8.291]
[1739969841574,3.48736691,2712.0,2711.8,11.9785]
[1739969841816,3.48736691,2712.0,2711.8,8.291]
[1739969841976,3.48736691,2712.0,2711.8,11.97858]
[1739969842312,3.48736691,2712.0,2711.8,8.291]
[1739969843607,3.48736691,2712.0,2711.8,11.97858]
[1739969844236,3.48736691,2712.0,2711.8,8.291]
[1739969844592,3.48736691,2712.0,2711.8,11.97856]
[1739969844799,0.8141,2712.4,2711.9,3.68745]
[1739969845001,3.48736691,2712.1,2711.9,3.68745]
[1739969845223,3.48736691,2712.1,2711.8,11.97852]
[1739969845533,3.48736691,2712.1,2711.9,3.68743]
[1739969845701,3.48736691,2712.1,2712.0,3.68731]
[1739969845901,4.30146691,2712.4,2712.0,3.68731]
[1739969846315,4.30146691,2712.4,2712.2,3.68704]
[1739969846601,4.30146691,2712.4,2712.2,3.68696]
[1739969846813,4.30146691,2712.4,2712.1,3.68717]
[1739969847035,4.30146691,2712.4,2712.2,3.68702]
[1739969847343,4.30146691,2712.4,2712.2,3.68695]
[1739969847638,4.30146691,2712.4,2712.2,3.68693]
[1739969848030,3.48736691,2712.4,2712.3,3.6869]
[1739969848239,3.48736691,2712.4,2712.1,3.68716]
[1739969848626,3.48736691,2712.4,2712.1,7.37427]
[1739969849146,3.48736691,2712.4,2712.1,3.68711]
[1739969849556,3.48736691,2712.4,2712.1,3.6871]
[1739969849849,3.48736691,2712.4,2712.1,3.68704]
[1739969850349,3.48736691,2712.4,2712.1,7.37414]
[1739969850855,3.48736691,2712.4,2711.8,0.67378326]
[1739969851015,3.48736691,2712.4,2712.1,3.68705]
[1739969851214,3.48736691,2712.4,2712.2,3.68703]
[1739969851431,3.48736691,2712.4,2712.3,3.6869]
[1739969851608,4.29176691,2712.7,2712.3,3.6869]
[1739969851808,4.29176691,2712.7,2712.4,3.68668]
[1739969852461,4.29176691,2712.7,2712.4,3.68666]
[1739969853830,4.29176691,2712.7,2712.2,4.07734]
[1739969854106,5.4581796,2712.7,2712.2,3.68694]
[1739969855431,5.4581796,2712.7,2712.3,3.68689]
[1739969855757,5.4581796,2712.7,2712.4,3.68668]
[1739969855917,4.29176691,2712.7,2712.5,3.68661]
[1739969856557,3.48736691,2712.7,2712.5,3.68661]
[1739969856861,0.8054,2712.9,2712.5,3.68657]
[1739969857025,0.7672,2713.2,2712.7,3.68628]
[1739969857227,0.7672,2713.2,2712.9,3.68607]
[1739969858748,0.7672,2713.2,2712.9,3.68601]
[1739969859084,0.7672,2713.2,2712.9,3.68598]
[1739969859355,0.7672,2713.2,2713.0,3.6859]
[1739969859519,0.7672,2713.2,2712.9,3.68601]
[1739969859722,0.7672,2713.2,2713.0,3.68594]
[1739969860858,0.7672,2713.2,2713.0,7.37182]
[1739969861160,0.7672,2713.2,2713.0,3.68588]
[1739969862215,3.48736691,2713.6,2713.1,0.3904]
[1739969862417,0.79729769,2713.5,2713.2,3.68568]
[1739969862646,3.79729769,2713.5,2713.1,3.68578]
[1739969863358,0.7963,2713.2,2712.6,5.3176]
[1739969863659,0.7963,2712.8,2712.6,5.3176]
[1739969863822,0.7963,2712.8,2712.6,9.00408]
[1739969864231,3.48736691,2712.9,2712.6,9.00408]
[1739969865173,3.48736691,2712.9,2712.6,9.00402]
[1739969865336,3.48736691,2712.9,2712.7,3.6863]
[1739969866043,3.48736691,2712.9,2712.6,9.00408]
[1739969866248,3.48736691,2712.9,2712.6,5.3176]
[1739969866573,3.48736691,2712.9,2712.6,9.00407]
[1739969866742,3.48736691,2712.9,2712.6,12.69047]
[1739969866943,3.48736691,2712.9,2712.6,9.004]
[1739969867146,3.48736691,2712.9,2712.8,3.68622]
[1739969867350,4.30566691,2713.2,2712.7,3.68625]
[1739969867554,5.1047906,2713.2,2712.7,3.68625]
[1739969867753,5.1047906,2713.2,2712.8,3.6862]
[1739969868880,5.1047906,2713.2,2712.6,3.6864]
[1739969869408,5.1047906,2713.2,2712.7,3.68629]
[1739969869566,5.1047906,2713.2,2712.4,5.3176]
[1739969869763,4.30566691,2713.2,2712.8,3.68613]
[1739969869964,4.30566691,2713.2,2712.9,3.68608]
[1739969870175,3.48736691,2713.2,2712.8,0.3904]
[1739969870402,3.48736691,2713.2,2713.0,7.37165]
[1739969870604,3.48736691,2713.2,2713.1,3.68582]
[1739969872269,3.48736691,2713.2,2713.0,3.68589]
[1739969872616,3.48736691,2713.2,2713.1,3.68582]
[1739969873259,0.7708,2713.4,2713.1,3.68582]
[1739969875318,0.80554646,2713.3,2712.7,5.3176]
[1739969875490,3.48736691,2713.2,2712.8,3.6862]
[1739969877624,3.48736691,2713.2,2712.8,3.68614]
[1739969877936,3.48736691,2713.2,2712.8,3.68612]
[1739969878139,3.48736691,2713.2,2712.9,3.68604]
[1739969880166,3.48736691,2713.2,2712.8,3.68621]
[1739969880372,3.48736691,2713.2,2712.8,3.68622]
[1739969880663,3.48736691,2713.2,2712.9,3.68607]
[1739969881329,3.48736691,2713.2,2712.9,3.68603]
[1739969881524,3.48736691,2713.2,2712.9,3.68602]
[1739969881753,0.7708,2713.4,2713.0,3.68594]
[1739969882770,0.7708,2713.4,2713.1,3.68574]
[1739969883475,0.7761,2713.6,2713.3,3.68548]
[1739969883977,0.7761,2713.6,2713.3,7.37094]
[1739969884485,0.7761,2713.6,2713.3,3.68547]
[1739969884663,0.7761,2713.6,2713.2,5.3176]
[1739969884869,4.30776691,2713.9,2713.7,3.685]
[1739969885542,3.48736691,2713.9,2713.7,3.685]
[1739969886738,3.48736691,2713.9,2713.8,3.68486]
[1739969887351,0.7936,2714.1,2713.9,3.68472]
[1739969888080,3.48736691,2714.2,2713.7,3.6849]
[1739969888382,3.48736691,2714.2,2714.0,3.68459]
[1739969888590,0.7703,2714.3,2714.1,3.68439]
[1739969888756,3.0,2714.6,2714.1,3.68439]
[1739969888757,3.48736691,2714.4,2714.1,3.68439]
[1739969888940,3.48736691,2714.4,2714.2,4.07471]
[1739969889140,3.48736691,2714.4,2714.2,0.3904]
[1739969889484,3.48736691,2714.4,2714.1,3.68439]
[1739969889687,3.48736691,2714.4,2714.0,0.3904]
[1739969890186,3.48736691,2714.4,2714.1,3.68433]
[1739969891806,3.48736691,2714.4,2714.0,4.07487]
[1739969892107,4.25286691,2714.4,2714.0,3.68447]
[1739969892306,4.25286691,2714.4,2713.8,9.39273]
[1739969892604,4.25286691,2714.4,2714.0,3.68454]
[1739969892912,4.25286691,2714.4,2714.1,3.68445]
[1739969893208,4.25286691,2714.4,2714.1,3.68439]
[1739969893610,4.25286691,2714.4,2714.2,3.68432]
[1739969894112,4.25286691,2714.4,2714.1,3.68439]
[1739969894312,4.25286691,2714.4,2713.9,4.36988868]
[1739969894607,3.48736691,2714.4,2714.2,3.68431]
[1739969895169,3.48736691,2714.4,2714.1,3.68444]
[1739969895365,3.48736691,2714.4,2714.0,3.68459]
[1739969895805,3.48736691,2714.4,2713.9,3.68472]
[1739969897211,3.48736691,2714.4,2713.8,5.708]
[1739969897361,3.48736691,2714.1,2713.8,5.3176]
[1739969897702,3.48736691,2714.1,2713.8,9.00245]
[1739969897903,3.48736691,2714.1,2713.8,5.3176]
[1739969898064,3.48736691,2714.1,2713.8,9.00238]
[1739969898267,3.48736691,2714.1,2713.9,3.68471]
[1739969898461,3.48736691,2714.1,2713.8,5.3176]
[1739969898779,3.48736691,2714.1,2713.8,9.00244]
[1739969899750,3.48736691,2714.1,2713.7,3.68487]
[1739969899952,3.48736691,2714.1,2713.9,3.68472]
[1739969900253,3.48736691,2714.1,2713.7,3.68487]
[1739969901009,3.48736691,2714.1,2713.8,3.68477]
[1739969901647,0.7575,2714.3,2713.8,3.6848]
[1739969901851,0.7575,2714.3,2713.9,3.6846]
[1739969902142,0.7575,2714.3,2713.9,3.68473]
[1739969902344,0.7575,2714.3,2713.8,3.6848]
[1739969902535,0.7575,2714.3,2713.9,3.6846]
[1739969903032,0.7575,2714.3,2714.0,3.68457]
[1739969903557,3.68373,2714.7,2714.0,3.68457]
[1739969903719,3.8267,2714.6,2714.2,3.68426]
[1739969904218,0.8267,2714.6,2714.2,7.36851]
[1739969904442,0.8267,2714.6,2714.2,3.68425]
[1739969905041,0.8267,2714.6,2713.9,0.3904]
[1739969905378,7.17143691,2714.4,2713.9,0.3904]
[1739969905677,7.17143691,2714.4,2713.7,3.68496]
[1739969905678,0.8267,2714.3,2713.7,3.68496]
[1739969905848,4.51089,2714.3,2713.7,3.68494]
[1739969906051,4.51089,2714.3,2713.8,3.68484]
[1739969906853,0.8267,2714.3,2713.8,3.68484]
[1739969907474,0.8267,2714.3,2713.9,3.68472]
[1739969907645,0.7934,2714.0,2713.6,5.3176]
[1739969908787,0.7934,2714.0,2713.4,3.68534]
[1739969908941,0.7934,2714.0,2713.5,3.68521]